fUST/lending_fUST_20250222
["ID","MTS","AMOUNT","RATE_DAILY","PERIOD"]
[353949935,1740165050341,-69018.52196978,0.00017,2]
[353949937,1740165050352,-800.0,0.00017,3]
[353949939,1740165050362,-18139.0,0.00017,2]
[353949941,1740165050371,-300.26844897,0.00017,2]
[353949943,1740165050380,-7095.4710321,0.00017,2]
[353949945,1740165050390,-612.33135637,0.00017014,2]
[353949947,1740165050399,-2021.84,0.00017049,2]
[353949949,1740165050408,-1000.0,0.000171,4]
[353949951,1740165050418,-29819.55778393,0.0001711,2]
[353949953,1740165050428,-612.33135637,0.00017114,2]
[353949955,1740165050437,-2000.0,0.00017159,2]
[353949957,1740165050446,-1000.0,0.000172,4]
[353949969,1740165050534,-845.4,0.000172,2]
[353949971,1740165050553,-612.33135637,0.00017214,2]
[353949973,1740165050562,-500.0,0.00017216,2]
[353949975,1740165050572,-500.0,0.00017216,2]
[353949977,1740165050581,-150.0,0.00017267,2]
[353949979,1740165050591,-538.0,0.00017267,2]
[353949981,1740165050600,-1969.0,0.00017267,2]
[353949983,1740165050609,-2288.0,0.00017267,2]
[353949985,1740165050618,-255.65241636,0.00017285,2]
[353949987,1740165050628,-1000.0,0.000173,4]
[353949989,1740165050637,-612.33135637,0.00017314,2]
[353949991,1740165050647,-1000.0,0.000174,4]
[353949993,1740165050656,-612.33135637,0.00017414,2]
[353949995,1740165050666,-22211.24472224,0.00017435,15]
[353949997,1740165050675,-1000.0,0.00017445,2]
[353949999,1740165050685,-500.0,0.0001749,2]
[353950001,1740165050694,-500.0,0.0001749,2]
[353950003,1740165050703,-30000.0,0.000175,10]
[353950005,1740165050713,-30000.0,0.000175,10]
[353950007,1740165050722,-33456.39385706,0.000175,10]
[353950009,1740165050731,-13103.0,0.000175,60]
[353950011,1740165050740,-18228.19954778,0.000175,10]
[353950013,1740165050750,-6941.04305793,0.000175,2]
[353950015,1740165050759,-612.33135637,0.00017514,2]
[353950017,1740165050768,-1500.0,0.00017522,2]
[353950019,1740165050777,-577.72,0.00017534,4]
[353950021,1740165050786,-2041.8514894,0.000176,2]
[353950023,1740165050794,-612.33135637,0.00017614,2]
[353950025,1740165050803,-612.33135637,0.00017714,2]
[353950027,1740165050813,-456.81088483,0.0001772,2]
[353950029,1740165050821,-255.43601835,0.0001772,2]
[353950031,1740165050830,-500.0,0.00017764,2]
[353950033,1740165050840,-500.0,0.00017764,2]
[353950035,1740165050848,-24957.84877713,0.00017764,2]
[353950037,1740165050857,-38635.23982679,0.00017764,2]
[353950039,1740165050867,-418.2171443,0.00017764,35]
[353950041,1740165050875,-3049.67026098,0.00017764,2]
[353950043,1740165050885,-90086.75400837,0.00017764,2]
[353950045,1740165050894,-30000.0,0.00017764,2]
[353950047,1740165050903,-16651.92928245,0.00017764,2]
[353950049,1740165050911,-300.0,0.00017764,2]
[353950051,1740165050922,-800.17963245,0.00017764,2]
[353950053,1740165050933,-251.7807745,0.00017764,2]
[353950055,1740165050942,-293.37160643,0.00017764,2]
[353950057,1740165050951,-812.56729487,0.00017764,2]
[353950059,1740165050960,-1640.24967388,0.00017764,2]
[353950061,1740165050970,-323.14608747,0.00017764,2]
[353950063,1740165050979,-1195.11534856,0.00017764,2]
[353950065,1740165050987,-288.40000452,0.00017764,2]
[353950067,1740165050996,-51093.55806564,0.00017764,2]
[353950069,1740165051007,-355.05767104,0.00017764,2]
[353950071,1740165051016,-4155.8134932,0.00017764,2]
[353950073,1740165051025,-154.59802366,0.00017764,2]
[353950075,1740165051035,-10182.57249442,0.00017764,2]
[353950077,1740165051044,-6219.25392846,0.00017764,2]
[353950079,1740165051053,-155.70461235,0.00017764,2]
[353950081,1740165051062,-520.26402042,0.00017764,2]
[353950083,1740165051071,-1694.36108729,0.00017764,2]
[353950085,1740165051079,-440.83188622,0.00017764,2]
[353950087,1740165051088,-1847.16416307,0.00017764,2]
[353950089,1740165051098,-13619.61943452,0.00017764,2]
[353950091,1740165051106,-462.76689082,0.00017764,2]
[353950093,1740165051115,-177.13358237,0.00017764,2]
[353950095,1740165051124,-12358.82345926,0.00017764,30]
[353950097,1740165051133,-187.20256192,0.00017764,2]
[353950098,1740165051142,-151.13163845,0.00017764,2]
[353950101,1740165051152,-299.89711832,0.00017764,2]
[353950103,1740165051163,-1381.63037102,0.00017764,2]
[353950105,1740165051174,-580.42234138,0.00017764,2]
[353950107,1740165051183,-5824.10134535,0.00017764,2]
[353950109,1740165051191,-15669.21401172,0.00017764,2]
[353950111,1740165051200,-501.77751746,0.00017764,2]
[353950113,1740165051209,-882.44281672,0.00017764,2]
[353950115,1740165051218,-3914.37224511,0.00017764,2]
[353950117,1740165051227,-383249.11429983,0.00017764,10]
[353950128,1740165051323,-47813.60779654,0.00017764,10]
[353950130,1740165051334,-482.75,0.00017764,10]
[353950133,1740165051350,-12782.00000585,0.00017764,10]
[353950138,1740165051394,-2412.575,0.00017764,10]
[353954808,1740165807375,-500.0,0.00013778,2]
[353954809,1740165807399,-500.0,0.00013928,2]
[353954810,1740165807421,-153.39144984,0.00014543,2]
[353954811,1740165807443,-168.171,0.00014603,2]
[353954812,1740165807466,-1090.43755016,0.00014603,2]
[353954822,1740166086621,162.965097,9.041e-05,2]
[353954850,1740166232552,-300.0,0.00013499,2]
[353954852,1740166232561,-181.385,0.000135,2]
[353954854,1740166232572,-950.71854089,0.000135,2]
[353954865,1740166232663,-3851.446684,0.000135,2]
[353955185,1740166238434,-5011.21760716,0.000135,2]
[353955187,1740166238446,-94286.34353598,0.000135,2]
[353955189,1740166238455,-3646.4315377,0.000135,2]
[353955190,1740166238464,-1662.6969675,0.00013535,2]
[353955191,1740166238473,-501.56720477,0.0001389,2]
[353955193,1740166238483,-500.0,0.00013928,2]
[353955195,1740166238492,-23809.56244984,0.00014603,2]
[353955197,1740166238501,-1969.0,0.00014643,2]
[353955199,1740166238511,-538.0,0.00014643,2]
[353955201,1740166238521,-2288.0,0.00014643,2]
[353955203,1740166238531,-396.0,0.00014643,2]
[353955205,1740166238541,-420.0,0.00014796,2]
[353955207,1740166238551,-3157.13,0.000149,2]
[353955209,1740166238560,-568.71632564,0.000149,2]
[353955211,1740166238569,-2200.0,0.00014995,2]
[353955213,1740166238578,-1000.0,0.00015,2]
[353955215,1740166238587,-22626.47802629,0.0001527,2]
[353955217,1740166238597,-850.0,0.000154,2]
[353955219,1740166238606,-500.0,0.000156,2]
[353955221,1740166238615,-7438.69753278,0.00015697,2]
[353955223,1740166238624,-162.965097,0.00015775,2]
[353955225,1740166238633,-1000.0,0.00016148,2]
[353955227,1740166238643,-1859.41974958,0.000162,2]
[353955229,1740166238654,-566.48078793,0.000162,2]
[353955231,1740166238667,-9231.97680122,0.000162,2]
[353955241,1740166238750,-5276.12310425,0.000162,2]
[353955243,1740166238760,-4375.81282618,0.000162,2]
[353955387,1740166243531,-960.0,0.000162,2]
[353955392,1740166243586,-396.0,0.000162,2]
[353955394,1740166243598,-11202.18761679,0.000162,2]
[353955395,1740166243607,-16934.00044297,0.000162,2]
[353955396,1740166243617,-2200.0,0.000162,2]
[353955397,1740166243626,-587.0,0.00016219,2]
[353955398,1740166243635,-1000.0,0.00016235,2]
[353955400,1740166243644,-529.57,0.00016394,2]
[353955402,1740166243654,-551.69730821,0.00016395,2]
[353955404,1740166243663,-500.0,0.00016438,2]
[353955406,1740166243672,-500.0,0.00016438,2]
[353955408,1740166243682,-551.69730821,0.00016495,2]
[353955410,1740166243692,-8410.98431365,0.00016507,4]
[353955412,1740166243701,-551.69730821,0.00016595,2]
[353955414,1740166243710,-500.0,0.00016668,2]
[353955415,1740166243720,-551.69730821,0.00016695,2]
[353955417,1740166243730,-3369.46839375,0.00016775,2]
[353955418,1740166243742,-2650.0,0.00016775,2]
[353955419,1740166243754,-10914.53204922,0.00016775,2]
[353955420,1740166243766,-551.69730821,0.00016795,2]
[353955421,1740166243776,-498.57453263,0.0001687,2]
[353955422,1740166243787,-551.69730821,0.00016895,2]
[353955423,1740166243796,-551.69730821,0.00016995,2]
[353955424,1740166243805,-1319.90364068,0.00017,2]
[353955425,1740166243815,-551.69730821,0.00017095,2]
[353955426,1740166243825,-1500.0,0.0001715,2]
[353955427,1740166243835,-551.69730821,0.00017195,2]
[353955428,1740166243844,-551.69730821,0.00017295,2]
[353955429,1740166243855,-551.69730821,0.00017395,2]
[353955430,1740166243864,-7177.10861112,0.000174,2]
[353955467,1740166246588,-56166.34511862,0.000174,2]
[353955469,1740166246598,-1823.4834,0.0001747,2]
[353955471,1740166246607,-551.69730821,0.00017495,2]
[353955473,1740166246617,-403.54617693,0.00017499,2]
[353955475,1740166246626,-500.0,0.00017499,2]
[353955477,1740166246635,-13498.23162692,0.000175,2]
[353955479,1740166246645,-551.69730821,0.00017595,2]
[353955481,1740166246653,-1969.0,0.00017643,2]
[353955483,1740166246662,-538.0,0.00017643,2]
[353955485,1740166246672,-2288.0,0.00017643,2]
[353955487,1740166246681,-2133.79503621,0.00017673,2]
[353955489,1740166246690,-551.69730821,0.00017695,2]
[353955491,1740166246699,-160.94,0.000177,31]
[353955493,1740166246709,-160.94,0.000177,31]
[353955495,1740166246718,-160.94,0.000177,31]
[353955497,1740166246727,-500.0,0.00017707,2]
[353955499,1740166246737,-500.0,0.00017707,2]
[353955501,1740166246746,-203.57347815,0.00017707,2]
[353955503,1740166246756,-115388.11323779,0.00017708,10]
[353955510,1740166246816,-0.575,0.00017708,10]
[353955512,1740166246828,-60700.00026726,0.00017708,10]
[353955515,1740166246839,-2650.0,0.00017708,10]
[353956210,1740166350931,300.0,0.00019,120]
[353956211,1740166413249,600.0,0.00019,120]
[353956213,1740167034513,345.8,0.00019,120]
[353956214,1740167078380,162.965097,9.041e-05,2]
[353956251,1740167431777,-478.21,0.00013928,2]
[353956253,1740167431883,-21.79,0.00013928,2]
[353956254,1740167431893,-168.171,0.00014545,2]
[353956255,1740167431902,-300.0,0.00014545,2]
[353956256,1740167431912,-500.0,0.00014546,2]
[353956257,1740167431921,-14310.13571656,0.00014546,2]
[353956298,1740167437662,-5133.95774178,0.00014546,2]
[353956304,1740167437717,-578.25268684,0.00014546,2]
[353956306,1740167437728,-4807.2708429,0.00014546,2]
[353956312,1740167437772,-70.38301192,0.00014546,2]
[353956314,1740167437782,-500.0,0.00014602,2]
[353956316,1740167437791,-500.0,0.00014628,2]
[353956318,1740167437800,-503.2649,0.00014684,2]
[353956320,1740167437810,-428.04500008,0.0001471,2]
[353956322,1740167437819,-2841.42,0.000148,2]
[353956324,1740167437829,-500.0,0.000148,2]
[353956327,1740167437838,-7438.69753278,0.00014818,2]
[353956330,1740167437847,-500.0,0.00014964,2]
[353956331,1740167437856,-150.0,0.00015004,2]
[353956333,1740167437866,-1969.0,0.00015004,2]
[353956335,1740167437876,-538.0,0.00015004,2]
[353956337,1740167437885,-2288.0,0.00015004,2]
[353956339,1740167437895,-500.0,0.00015064,2]
[353956341,1740167437904,-392.82487206,0.00015164,2]
[353956812,1740167442883,-276.222993,0.00014546,2]
[353956818,1740167442939,-223.777007,0.00014546,2]
[353956821,1740167442949,-276.222993,0.00014546,2]
[353956822,1740167442962,-223.777007,0.00014546,2]
[353956823,1740167442972,-605.43537759,0.00014628,2]
[353956824,1740167442982,-500.0,0.00014628,2]
[353956825,1740167442991,-500.0,0.0001471,2]
[353956826,1740167443001,-500.0,0.00014792,2]
[353956827,1740167443010,-326.28761541,0.00015004,2]
[353957122,1740167445815,-500.0,0.00014546,2]
[353957124,1740167445825,-500.0,0.00014628,2]
[353957126,1740167445835,-500.0,0.0001471,2]
[353957129,1740167445844,-439.24353075,0.00014792,2]
[353957131,1740167445854,-500.0,0.00014874,2]
[353957133,1740167445867,-613.27,0.00014956,2]
[353957135,1740167445877,-69.71238459,0.00015004,2]
[353957137,1740167445886,-107.17512794,0.00015164,2]
[353957151,1740167446004,-500.0,0.00015264,2]
[353957153,1740167446018,-2200.0,0.00015303,2]
[353957155,1740167446028,-1000.0,0.00015348,2]
[353957157,1740167446038,-500.0,0.00015364,2]
[353957159,1740167446048,-500.0,0.00015464,2]
[353957161,1740167446058,-500.0,0.00015564,2]
[353957163,1740167446068,-500.0,0.00015664,2]
[353957165,1740167446077,-500.0,0.00015764,2]
[353957167,1740167446086,-22626.47802629,0.0001584,2]
[353957169,1740167446096,-500.0,0.00015864,2]
[353957171,1740167446105,-420.0,0.00015926,2]
[353957173,1740167446114,-500.0,0.00015964,2]
[353957175,1740167446124,-500.0,0.00016064,2]
[353957177,1740167446133,-500.0,0.00016164,2]
[353957179,1740167446142,-3386.80008861,0.000162,2]
[353957181,1740167446152,-3386.80008859,0.000162,2]
[353957183,1740167446162,-3386.80008859,0.00016201,2]
[353957186,1740167446173,-500.0,0.00016264,2]
[353957188,1740167446183,-1500.0,0.0001635,2]
[353957190,1740167446192,-500.0,0.00016364,2]
[353957191,1740167446201,-500.0,0.00016438,2]
[353957193,1740167446211,-500.0,0.00016464,2]
[353957195,1740167446220,-500.0,0.00016564,2]
[353957198,1740167446230,-162.965097,0.00016567,2]
[353957200,1740167446239,-500.0,0.00016664,2]
[353957202,1740167446248,-500.0,0.00016668,2]
[353957204,1740167446257,-500.0,0.00016683,2]
[353957206,1740167446269,-500.0,0.00016764,2]
[353957208,1740167446278,-500.0,0.00016864,2]
[353957210,1740167446287,-500.0,0.00016964,2]
[353957212,1740167446296,-3386.80008859,0.00017051,2]
[353957214,1740167446305,-500.0,0.00017064,2]
[353957216,1740167446315,-500.0,0.00017164,2]
[353957218,1740167446324,-500.0,0.00017264,2]
[353957220,1740167446333,-500.0,0.00017364,2]
[353957222,1740167446342,-587.0,0.00017439,2]
[353957224,1740167446351,-500.0,0.00017464,2]
[353957226,1740167446361,-500.0,0.00017564,2]
[353957228,1740167446370,-1544.63441405,0.00017647,2]
[353957230,1740167446379,-500.0,0.00017664,2]
[353957232,1740167446389,-160.95,0.000177,31]
[353957234,1740167446398,-160.95,0.000177,31]
[353957236,1740167446408,-160.95,0.000177,31]
[353957238,1740167446417,-160.95,0.000177,31]
[353957240,1740167446426,-160.95,0.000177,31]
[353957242,1740167446437,-160.95,0.000177,31]
[353957244,1740167446447,-160.95,0.000177,31]
[353957246,1740167446456,-308.83793449,0.00017702,2]
[353957248,1740167446465,-500.0,0.00017702,2]
[353957250,1740167446475,-500.0,0.00017702,2]
[353957252,1740167446488,-500.0,0.00017702,2]
[353957254,1740167446497,-500.0,0.00017702,2]
[353957257,1740167446507,-500.0,0.00017702,2]
[353957259,1740167446517,-500.0,0.00017702,2]
[353957261,1740167446527,-302.10379872,0.00017702,2]
[353957263,1740167446537,-500.0,0.00017702,2]
[353957265,1740167446546,-500.0,0.00017702,2]
[353957267,1740167446555,-500.0,0.00017702,2]
[353957269,1740167446564,-500.0,0.00017702,2]
[353957271,1740167446573,-500.0,0.00017702,2]
[353957273,1740167446582,-486.284496,0.00017702,2]
[353957275,1740167446591,-507.51,0.00017703,2]
[353957277,1740167446601,-6344.4205893,0.00017703,5]
[353957279,1740167446611,-55185.71424699,0.00017703,10]
[353957285,1740167446654,-956.8,0.00017703,10]
[353962651,1740168142746,162.965097,9.041e-05,2]
[353962708,1740168632075,-504.1566306,0.0001276,2]
[353962710,1740168632084,-2908.43057867,0.00013479,2]
[353962713,1740168632098,-2404.95835741,0.00013479,2]
[353962715,1740168632110,-300.0,0.00013579,2]
[353962717,1740168632120,-24900.0,0.0001358,2]
[353962719,1740168632129,-151.0,0.000136,2]
[353962721,1740168632139,-500.0,0.00013673,2]
[353962723,1740168632149,-427.3514344,0.00013698,2]
[353962725,1740168632158,-500.0,0.00013698,2]
[353962727,1740168632168,-454.04102964,0.00013698,2]
[353962729,1740168632178,-500.0,0.00013698,2]
[353962731,1740168632189,-500.0,0.00013698,2]
[353962733,1740168632199,-512.0,0.00013698,2]
[353962735,1740168632209,-519.87479579,0.00013698,2]
[353962738,1740168632218,-604.67824573,0.00013698,2]
[353962741,1740168632227,-500.0,0.00013698,2]
[353962744,1740168632238,-500.0,0.00013698,2]
[353962747,1740168632248,-500.0,0.00013698,2]
[353962750,1740168632259,-526.9706818,0.00013698,2]
[353962752,1740168632269,-500.0,0.00013698,2]
[353962754,1740168632280,-500.0,0.00013698,2]
[353962756,1740168632290,-500.0,0.00013698,2]
[353962758,1740168632300,-500.0,0.00013698,2]
[353962760,1740168632309,-500.0,0.00013698,2]
[353962762,1740168632319,-500.69529481,0.00013698,2]
[353962764,1740168632329,-500.0,0.00013698,2]
[353962766,1740168632339,-293.58903711,0.00013698,2]
[353962768,1740168632349,-500.0,0.00013698,2]
[353962770,1740168632359,-501.49452962,0.00013698,2]
[353962772,1740168632369,-500.0,0.00013698,2]
[353962774,1740168632378,-500.0,0.00013698,2]
[353962776,1740168632388,-500.0,0.00013698,2]
[353962778,1740168632398,-500.0,0.00013698,2]
[353962780,1740168632408,-500.0,0.00013698,2]
[353962782,1740168632418,-500.0,0.00013698,2]
[353962784,1740168632427,-500.0,0.00013698,2]
[353962786,1740168632437,-500.0,0.00013698,2]
[353962788,1740168632447,-403.15620718,0.00013698,2]
[353962790,1740168632458,-497.42507754,0.00013698,2]
[353962792,1740168632467,-500.0,0.00013698,2]
[353962794,1740168632476,-500.0,0.00013698,2]
[353962796,1740168632486,-500.0,0.00013698,2]
[353962798,1740168632495,-500.0,0.00013698,2]
[353962800,1740168632504,-500.0,0.00013698,2]
[353962802,1740168632514,-500.0,0.00013698,2]
[353962804,1740168632523,-500.0,0.00013698,2]
[353962806,1740168632532,-500.0,0.00013698,2]
[353962807,1740168632542,-500.0,0.00013698,2]
[353962810,1740168632551,-500.0,0.00013698,2]
[353962812,1740168632561,-500.0,0.00013698,2]
[353962814,1740168632570,-500.0,0.00013698,2]
[353962816,1740168632579,-500.0,0.00013698,2]
[353962818,1740168632591,-500.0,0.00013698,2]
[353962820,1740168632600,-500.0,0.00013698,2]
[353962822,1740168632610,-500.0,0.00013698,2]
[353962824,1740168632619,-500.0,0.00013698,2]
[353962826,1740168632628,-500.0,0.00013698,2]
[353962828,1740168632637,-500.0,0.00013698,2]
[353962830,1740168632646,-501.30269568,0.00013698,2]
[353962831,1740168632655,-264.90135804,0.00013698,2]
[353962833,1740168632664,-500.0,0.00013698,2]
[353962836,1740168632674,-500.0,0.00013698,2]
[353962838,1740168632683,-501.3004678,0.00013698,2]
[353962840,1740168632692,-512.38538375,0.00013698,2]
[353962842,1740168632701,-500.0,0.00013698,2]
[353962844,1740168632714,-500.0,0.00013698,2]
[353962846,1740168632731,-502.65970268,0.00013698,2]
[353962848,1740168632741,-500.0,0.00013698,2]
[353962850,1740168632750,-500.0,0.00013698,2]
[353962851,1740168632762,-503.94733162,0.00013698,2]
[353962854,1740168632772,-500.0,0.00013698,2]
[353962855,1740168632781,-500.0,0.00013698,2]
[353962857,1740168632790,-500.0,0.00013698,2]
[353962860,1740168632800,-500.0,0.00013698,2]
[353962862,1740168632810,-500.0,0.00013698,2]
[353962863,1740168632819,-500.0,0.00013698,2]
[353962866,1740168632828,-500.0,0.00013698,2]
[353962868,1740168632837,-500.0,0.00013698,2]
[353962869,1740168632847,-500.0,0.00013698,2]
[353962872,1740168632857,-500.0,0.00013698,2]
[353962874,1740168632866,-500.0,0.00013698,2]
[353962875,1740168632875,-500.0,0.00013698,2]
[353962878,1740168632885,-500.0,0.00013698,2]
[353962879,1740168632894,-500.0,0.00013698,2]
[353962882,1740168632903,-1196.22,0.00013698,2]
[353962884,1740168632914,-500.0,0.00013698,2]
[353962886,1740168632926,-500.0,0.00013698,2]
[353962888,1740168632937,-500.0,0.00013698,2]
[353962890,1740168632949,-500.0,0.00013698,2]
[353962893,1740168632961,-500.0,0.00013698,2]
[353962896,1740168632982,-500.0,0.00013698,2]
[353962899,1740168632998,-500.0,0.00013698,2]
[353962901,1740168633010,-500.0,0.00013698,2]
[353962903,1740168633021,-500.0,0.00013698,2]
[353962906,1740168633034,-500.0,0.00013698,2]
[353962908,1740168633047,-500.0,0.00013698,2]
[353962910,1740168633059,-500.0,0.00013698,2]
[353962913,1740168633071,-500.0,0.00013698,2]
[353962915,1740168633083,-500.0,0.00013698,2]
[353962917,1740168633097,-500.0,0.00013698,2]
[353962920,1740168633113,-500.0,0.00013698,2]
[353962922,1740168633126,-500.0,0.00013698,2]
[353962924,1740168633140,-500.0,0.00013698,2]
[353962927,1740168633153,-500.0,0.00013698,2]
[353962929,1740168633165,-500.0,0.00013698,2]
[353962931,1740168633178,-500.0,0.00013698,2]
[353962934,1740168633192,-500.0,0.00013698,2]
[353962936,1740168633205,-500.0,0.00013698,2]
[353962938,1740168633218,-500.0,0.00013698,2]
[353962940,1740168633229,-500.0,0.00013698,2]
[353962943,1740168633242,-500.0,0.00013698,2]
[353962945,1740168633253,-500.0,0.00013698,2]
[353962947,1740168633264,-500.0,0.00013698,2]
[353962949,1740168633276,-500.0,0.00013698,2]
[353962952,1740168633291,-500.0,0.00013698,2]
[353962954,1740168633304,-500.0,0.00013698,2]
[353962956,1740168633316,-500.55781911,0.00013698,2]
[353962959,1740168633328,-500.0,0.00013698,2]
[353962961,1740168633340,-500.64937786,0.00013698,2]
[353962963,1740168633352,-500.0,0.00013698,2]
[353962966,1740168633364,-1866.85,0.00013698,2]
[353962968,1740168633376,-1866.85,0.00013698,2]
[353962970,1740168633388,-500.0,0.00013698,2]
[353962972,1740168633399,-500.0,0.00013698,2]
[353962973,1740168633410,-500.0,0.00013698,2]
[353962974,1740168633421,-500.0,0.00013698,2]
[353962975,1740168633431,-500.0,0.00013698,2]
[353962976,1740168633443,-500.0,0.00013698,2]
[353962977,1740168633455,-500.0,0.00013698,2]
[353962978,1740168633466,-500.0,0.00013698,2]
[353962979,1740168633479,-500.0,0.00013698,2]
[353962980,1740168633491,-500.0,0.00013698,2]
[353962981,1740168633502,-500.0,0.00013698,2]
[353962982,1740168633514,-500.0,0.00013698,2]
[353962983,1740168633526,-500.0,0.00013698,2]
[353962984,1740168633538,-500.0,0.00013698,2]
[353962985,1740168633549,-500.0,0.00013698,2]
[353962986,1740168633562,-500.0,0.00013698,2]
[353962987,1740168633575,-500.0,0.00013698,2]
[353962988,1740168633588,-500.0,0.00013698,2]
[353962989,1740168633601,-500.0,0.00013698,2]
[353962990,1740168633614,-500.0,0.00013698,2]
[353962991,1740168633626,-500.0,0.00013698,2]
[353962992,1740168633638,-500.0,0.00013698,2]
[353962994,1740168633648,-500.0,0.00013698,2]
[353962996,1740168633659,-508.96302519,0.00013698,2]
[353962998,1740168633669,-500.0,0.00013698,2]
[353963000,1740168633679,-500.0,0.00013698,2]
[353963002,1740168633690,-538.18755941,0.00013698,2]
[353963004,1740168633700,-500.0,0.00013698,2]
[353963006,1740168633710,-500.0,0.00013698,2]
[353963008,1740168633722,-500.0,0.00013698,2]
[353963010,1740168633734,-500.0,0.00013698,2]
[353963013,1740168633748,-500.0,0.00013698,2]
[353963015,1740168633760,-500.0,0.00013698,2]
[353963017,1740168633772,-500.0,0.00013698,2]
[353963020,1740168633784,-500.0,0.00013698,2]
[353963022,1740168633794,-500.0,0.00013698,2]
[353963024,1740168633805,-500.0,0.00013698,2]
[353963026,1740168633816,-500.0,0.00013698,2]
[353963028,1740168633828,-500.0,0.00013698,2]
[353963030,1740168633839,-500.0,0.00013698,2]
[353963033,1740168633850,-500.0,0.00013698,2]
[353963035,1740168633863,-329.54949911,0.00013698,2]
[353963037,1740168633875,-500.0,0.00013698,2]
[353963039,1740168633886,-500.0,0.00013698,2]
[353963042,1740168633896,-500.0,0.00013698,2]
[353963044,1740168633907,-500.0,0.00013698,2]
[353963046,1740168633917,-500.0,0.00013698,2]
[353963048,1740168633928,-500.0,0.00013698,2]
[353963050,1740168633938,-528.55,0.00013698,2]
[353963052,1740168633949,-500.0,0.00013698,2]
[353963054,1740168633959,-500.0,0.00013698,2]
[353963056,1740168633970,-500.0,0.00013698,2]
[353963059,1740168633981,-500.0,0.00013698,2]
[353963061,1740168633992,-500.0,0.00013698,2]
[353963063,1740168634003,-500.0,0.00013698,2]
[353963065,1740168634014,-572.22,0.00013698,2]
[353963067,1740168634025,-500.0,0.00013698,2]
[353963069,1740168634036,-500.0,0.00013698,2]
[353963072,1740168634047,-500.0,0.00013698,2]
[353963074,1740168634058,-500.0,0.00013698,2]
[353963076,1740168634069,-500.0,0.00013698,2]
[353963078,1740168634081,-500.0,0.00013698,2]
[353963080,1740168634092,-3350.86,0.00013698,2]
[353963082,1740168634105,-808.73,0.00013698,2]
[353963084,1740168634117,-500.0,0.00013698,2]
[353963086,1740168634128,-500.0,0.00013698,2]
[353963089,1740168634139,-500.0,0.00013698,2]
[353963091,1740168634150,-500.0,0.00013698,2]
[353963093,1740168634161,-500.0,0.00013698,2]
[353963095,1740168634172,-500.0,0.00013698,2]
[353963097,1740168634184,-670.44,0.00013698,2]
[353963099,1740168634194,-500.0,0.00013698,2]
[353963102,1740168634205,-500.0,0.00013698,2]
[353963104,1740168634226,-500.0,0.00013698,2]
[353963106,1740168634236,-500.0,0.00013698,2]
[353963108,1740168634247,-500.0,0.00013698,2]
[353963110,1740168634258,-500.0,0.00013698,2]
[353963112,1740168634270,-500.0,0.00013698,2]
[353963114,1740168634281,-500.0,0.00013698,2]
[353963116,1740168634292,-500.0,0.00013698,2]
[353963119,1740168634304,-168.72633941,0.00013698,2]
[353963121,1740168634315,-500.0,0.00013698,2]
[353963123,1740168634325,-500.0,0.00013698,2]
[353963125,1740168634336,-500.0,0.00013698,2]
[353963127,1740168634347,-500.0,0.00013698,2]
[353963144,1740168634499,-500.0,0.00013698,2]
[353963147,1740168634510,-500.0,0.00013698,2]